Workbook

Sheet 18编办控制价示例
A1: 项目节编号 | B1: 清单子目号 | C1: 名称 | D1: 单位 | E1: 清单数量 | F1: 设计数量1 | G1: 设计数量2 | H1: 单价 | I1: 合价 | J1: 图号 | K1: 备注
A2: 1 | C2: 第一部分 建筑安装工程费 | D2: 公路公里 | F2: 5 | H2: =I2/F2 -> 6343228.4 | I2: 31716142
A3: 101 | C3: 临时工程 | D3: 公路公里 | F3: 5 | H3: =I3/F3 -> 1031513 | I3: 5157565
B4: 101-1-a | C4: 按合同条款规定,提供建筑工程一切险 | D4: 总额 | E4: 1 | H4: 1569830 | I4: 1569830
B5: 101-1-b | C5: 按合同条款规定,提供第三方责任险 | D5: 总额 | E5: 1 | H5: 60000 | I5: 60000
B6: 102-1 | C6: 竣工文件 | D6: 总额 | E6: 1 | H6: 200000 | I6: 200000
B7: 102-3 | C7: 安全生产费 | D7: 总额 | E7: 1 | H7: 500000 | I7: 500000
B8: 102-4 | C8: 纵横工程管理软件(暂估价) | D8: 总额 | E8: 1 | H8: 100000 | I8: 100000
B9: 103-1-a | C9: 临时道路 | D9: 总额 | E9: 1 | H9: 1628162 | I9: 1628162
B10: 103-2 | C10: 临时用地 | D10: 总额 | E10: 1 | H10: 57350 | I10: 57350
B11: 103-3-a | C11: 设施架设、拆除 | D11: 总额 | E11: 1 | H11: 941452 | I11: 941452
B12: 103-3-b | C12: 设施维护 | D12: 总额 | E12: 1 | H12: 50000 | I12: 50000
B13: 103-4 | C13: 电信设施的提供、维修与拆除 | D13: 总额 | E13: 1 | H13: 50771 | I13: 50771
A14: 102 | C14: 路基工程 | D14: km | F14: 3.62 | H14: =I14/F14 -> 4512756.077 | I14: 16336177
A15: LJ02 | C15: 路基挖方 | D15: m3 | F15: 524213.67 | H15: =I15/F15 -> 7.530000124 | I15: 3947329
A16: LJ0201 | C16: 挖土方 | D16: m3 | F16: 524213.67 | H16: =I16/F16 -> 7.530000124 | I16: 3947329
A17: LJ020101 | C17: 挖路基土方 | D17: m3 | F17: 524213.67 | H17: =I17/F17 -> 7.530000124 | I17: 3947329
B18: 203-1-a | C18: 挖土方 | D18: m3 | E18: 524213.67 | H18: 7.53 | I18: 3947329
A19: LJ03 | C19: 路基填方 | D19: m3 | F19: =F20+F22 -> 292966.67 | H19: =I19/F19 -> 15.31229474 | I19: 4485992
A20: LJ0301 | C20: 利用土方填筑 | D20: m3 | F20: 46900.67 | H20: =I20/F20 -> 6.72001061 | I20: 315173
B21: 204-1-b | C21: 利用土方 | D21: m3 | E21: 46900.67 | H21: 6.72 | I21: 315173
A22: LJ0302 | C22: 借土方填筑 | D22: m3 | F22: 246066 | H22: =I22/F22 -> 16.95000122 | I22: 4170819
B23: 204-1-e | C23: 借土填方 | D23: m3 | E23: 246066 | H23: 16.95 | I23: 4170819
A24: LJ05 | C24: 特殊路基处理 | D24: km | F24: 3.62 | H24: =I24/F24 -> 1149792.265 | I24: 4162248
A25: LJ0501 | C25: 软土地区路基处理 | D25: km/m2 | F25: 3.62 | H25: =I25/F25 -> 1149792.265 | I25: 4162248
A26: LJ050101 | C26: 抛石挤淤 | D26: m3/m2 | F26: =E27+E28+E30 -> 89737.8 | H26: =I26/F26 -> 46.38232718 | I26: 4162248
B27: 203-1-d | C27: 挖淤泥 | D27: m3 | E27: 51899.4 | H27: 17.03 | I27: 883847
B28: 204-1-j | C28: 回填片石 | D28: m3 | E28: 27238.4 | H28: 107.78 | I28: 2935755
B29: 205-1-o | C29: 单向格栅 | D29: m2 | E29: 16350 | H29: 14.96 | I29: 244596
B30: 204-1-g | C30: 回填粗粒土 | D30: m3 | E30: 10600 | H30: 9.25 | I30: 98050
A31: LJ06 | C31: 排水工程 | D31: km | F31: 3.62 | H31: =I31/F31 -> 605379.2818 | I31: 2191473
A32: LJ0601 | C32: 边沟 | D32: m3/m | F32: 1620 | H32: =I32/F32 -> 109.6 | I32: 177552
A33: LJ060103 | C33: 浆砌片块石边沟 | D33: m3/m | F33: 1620 | H33: =I33/F33 -> 109.6 | I33: 177552
B34: 207-1-b | C34: M7.5浆砌片石边沟 | D34: m3 | E34: 1620 | H34: 109.6 | I34: 177552
A35: LJ0602 | C35: 排水沟 | D35: m3/m | F35: =F36 -> 36940 | H35: =I35/F35 -> 26.2040065 | I35: 967976
A36: LJ060203 | C36: 浆砌片石排水沟 | D36: m3/m | F36: =E37*5 -> 36940 | H36: =I36/F36 -> 26.2040065 | I36: 967976
B37: 207-2-a | C37: M7.5浆砌片石排水沟 | D37: m | E37: 7388 | H37: 131.02 | I37: 967976
A38: LJ0603 | C38: 截水沟 | D38: m3/m | F38: 8450 | H38: =I38/F38 -> 69.4460355 | I38: 586819
A39: LJ060301 | C39: 浆砌片石截水沟 | D39: m3/m | F39: =E40*5 -> 8450 | H39: =I39/F39 -> 69.4460355 | I39: 586819
B40: 207-3-a | C40: M7.5浆砌片石截水沟 | D40: m | E40: 1690 | H40: 347.23 | I40: 586819
A41: LJ0604 | C41: 急流槽 | D41: m3/m | F41: 7795 | H41: =I41/F41 -> 58.90006414 | I41: 459126
A42: LJ060402 | C42: 浆砌片石急流槽 | D42: m3/m | F42: =E43*5 -> 7795 | H42: =I42/F42 -> 58.90006414 | I42: 459126
B43: 207-4-a | C43: M7.5浆砌片石急流槽 | D43: m3 | E43: 1559 | H43: 294.5 | I43: 459126
A44: LJ07 | C44: 路基防护与加固工程 | D44: km | F44: 3.62 | H44: =I44/F44 -> 427937.8453 | I44: 1549135
A45: LJ0702 | C45: 高边坡防护与加固 | D45: km/m2 | F45: 3.62 | H45: =I45/F45 -> 170391.989 | I45: 616819
A46: LJ070201 | C46: 坡面植物防护 | D46: m2 | F46: 86062.5 | H46: =I46/F46 -> 3.32000581 | I46: 285728
B47: 208-1-a | C47: 植草 | D47: m2 | E47: 86062.5 | H47: 3.32 | I47: 285728
A48: LJ070202 | C48: 坡面圬工防护 | D48: m3/m2 | F48: 2616.7 | H48: =I48/F48 -> 126.5299805 | I48: 331091
B49: 208-3-a | C49: 拱形浆砌片石护坡 | D49: m3 | E49: 2616.7 | H49: 126.53 | I49: 331091
A50: LJ0705 | C50: 挡土墙 | D50: m3/m | F50: 3.62 | H50: =I50/F50 -> 257545.8564 | I50: 932316
A51: LJ070501 | C51: 重力式挡墙 | D51: m3/m | F51: 3472.7 | H51: =I51/F51 -> 268.4700665 | I51: 932316
A52: LJ07050102 | C52: 浆砌片（块）石挡土墙 | D52: m3/m | F52: 3472.7 | H52: =I52/F52 -> 268.4700665 | I52: 932316
B53: 209-1-a | C53: 浆砌片（块）石挡墙 | D53: m3 | E53: 3472.7 | H53: 268.47 | I53: 932316
A54: 103 | C54: 路面工程 | D54: km | F54: 3.62 | H54: =I54/F54 -> 2198.618785 | I54: 7959
A55: LM02 | C55: 水泥混凝土路面 | D55: m2/m3 | F55: 71.2 | H55: =I55/F55 -> 111.7837079 | I55: 7959
B56: 304-2 | C56: 搭板、埋板下水泥稳定土底基层（4%） | D56: m2 | E56: 71.2 | H56: 111.78 | I56: 7959
A57: 104 | C57: 桥梁涵洞工程 | D57: km | F57: 1.38 | H57: =I57/F57 -> 7401768.841 | I57: 10214441
A58: 10401 | C58: 涵洞工程 | D58: m/道 | F58: =F59+F62 -> 420.3 | H58: =I58/F58 -> 2190.080895 | I58: 920491
A59: HD01 | C59: 钢筋混凝土管涵 | D59: m/道 | F59: 227.37 | H59: =I59/F59 -> 889.7611822 | I59: 202305
A60: HD0101 | C60: 1-Ф1.5m以内圆管涵 | D60: m/道 | F60: 227.37 | H60: =I60/F60 -> 889.7611822 | I60: 202305
B61: 418-3-c | C61: 1-Ф1.5m以内圆管涵 | D61: m | E61: 227.37 | H61: 889.76 | I61: 202305
A62: HD02 | C62: 盖板涵 | D62: m/道 | F62: =F63+F65 -> 192.93 | H62: =I62/F62 -> 3722.521122 | I62: 718186
A63: HD0201 | C63: 1-2m以内盖板涵 | D63: m/道 | F63: 111.07 | H63: =I63/F63 -> 2605.257945 | I63: 289366
B64: 420-1-b | C64: 1-2.00m×2.00m盖板涵 | D64: m | E64: 111.07 | H64: 2605.26 | I64: 289366
A65: HD0202 | C65: 1-4m以内盖板涵 | D65: m/道 | F65: 81.86 | H65: =I65/F65 -> 5238.4559 | I65: 428820
B66: 420-1-c | C66: 1-4.00m×3.00m盖板涵 | D66: m | E66: 81.86 | H66: 5238.45 | I66: 428820
A67: 10402 | C67: 小桥工程（8≤L≤30m,5≤Lk＜20m） | D67: m/座 | F67: 180 | H67: =I67/F67 -> 4031.383333 | I67: 725649
A68: 1040203 | C68: 空心板桥 | D68: m2/m | F68: 180 | H68: =I68/F68 -> 4031.383333 | I68: 725649
A69: 104020301 | C69: K0+078小桥 | D69: m/座 | F69: 180 | H69: =I69/F69 -> 4031.383333 | I69: 725649
A70: QL01 | C70: 基础工程 | D70: m | F70: 180 | H70: =I70/F70 -> 2765.95 | I70: 497871
B71: 403-1-a | C71: 光圆钢筋(HPB235、HPB300) | D71: kg | E71: 2019 | H71: 6.01 | I71: 12134
B72: 403-1-b | C72: 带肋钢筋(HRB335、HRB400) | D72: kg | E72: 5311 | H72: 6.01 | I72: 31919
B73: 405-1-a | C73: 桩径130cm | D73: m | E73: 180 | H73: 2231.26 | I73: 401627
B74: 410-1-b | C74: C25混凝土 | D74: m3 | E74: 14.6 | H74: 464.99 | I74: 6789
B75: 410-1-c | C75: C30混凝土 | D75: m3 | E75: 87.5 | H75: 518.88 | I75: 45402
A76: QL02 | C76: 下部结构 | D76: m/m2 | F76: 180 | H76: =I76/F76 -> 1112.35 | I76: 200223
B77: 403-2-a | C77: 光圆钢筋(HPB235、HPB300) | D77: kg | E77: 1891 | H77: 6.28 | I77: 11875
B78: 403-2-b | C78: 带肋钢筋(HRB335、HRB400) | D78: kg | E78: 16397 | H78: 6.22 | I78: 101989
B79: 410-2-a | C79: C25混凝土 | D79: m3 | E79: 29.1 | H79: 450.11 | I79: 13098
B80: 410-2-b | C80: C30混凝土 | D80: m3 | E80: 202.4 | H80: 358.97 | I80: 72656
B81: 413-1-a | C81: M7.5浆砌片石 | D81: m3 | E81: 2 | H81: 302.4 | I81: 605
A82: QL03 | C82: 上部结构 | D82: m/m2 | F82: 180 | H82: =I82/F82 -> 153.0833333 | I82: 27555
B83: 403-3-a | C83: 光圆钢筋(HPB235、HPB300) | D83: kg | E83: 1627 | H83: 6.29 | I83: 10234
B84: 410-7-c | C84: C50混凝土 | D84: m3 | E84: 17.3 | H84: 1001.23 | I84: 17321
A85: 10405 | C85: 特大桥工程（100≤L,40≤Lk） | D85: m/座 | F85: 1120 | H85: =I85/F85 -> 7650.26875 | I85: 8568301
A86: 1040501 | C86: ×××特大桥工程（××结构类型） | D86: m/m2 | F86: 1120 | H86: 7650.26875 | I86: 8568301
A87: QL02 | C87: 下部构造（墩高××m） | D87: m/m2 | F87: 1120 | H87: 3986.258929 | I87: 4464610
A88: QL0201 | C88: 桥台（台高××m） | D88: m3/处 | F88: =F89+F94 -> 1471 | H88: 834.6804895 | I88: 1227815
A89: QL020101 | C89: 桥台基础 | D89: m3/处 | F89: 1299 | H89: 704.9515012 | I89: 915732
A90: QL02010101 | C90: 桥台桩基础 | D90: m3/处 | F90: 1299 | H90: 562.5619707 | I90: 730768
B91: 403-1-a | C91: 光圆钢筋(HPB235、HPB300) | D91: kg | E91: 1112.4 | H91: 6.01 | I91: 6686
B92: 403-1-b | C92: 带肋钢筋(HRB335、HRB400) | D92: kg | E92: 29132 | H92: 6.01 | I92: 175083
B93: 405-1-b | C93: 桩径150cm | D93: m | E93: 184 | H93: 2983.69 | I93: 548999
A94: QL02010102 | C94: 桥台承台 | D94: m3/处 | F94: 172 | H94: =I94/F94 -> 1075.372093 | I94: 184964
B95: 403-1-b | C95: 带肋钢筋(HRB335、HRB400) | D95: kg | E95: 17468.6 | H95: 6.01 | I95: 104986
B96: 410-1-b | C96: C25混凝土 | D96: m3 | E96: 172 | H96: 464.99 | I96: 79978
A97: QL020102 | C97: 桥台台身 | D97: m3/处 | F97: 104.7 | H97: =I97/F97 -> 1480.238777 | I97: 154981
B98: 403-2-a | C98: 光圆钢筋(HPB235、HPB300) | D98: kg | E98: 2090.8 | H98: 6.28 | I98: 13130
B99: 403-2-b | C99: 带肋钢筋(HRB335、HRB400) | D99: kg | E99: 14065.26 | H99: 6.22 | I99: 87486
B100: 410-2-c | C100: C35混凝土 | D100: m3 | E100: 104.7 | H100: 519.25 | I100: 54365
A101: QL020103 | C101: 桥台耳背墙 | D101: m3/处 | F101: 46.2 | H101: =I101/F101 -> 1015.670996 | I101: 46924
B102: 403-2-b | C102: 带肋钢筋(HRB335、HRB400) | D102: kg | E102: 4877.84 | H102: 6.22 | I102: 30340
B103: 410-2-b | C103: C30混凝土 | D103: m3 | E103: 46.2 | H103: 358.97 | I103: 16584
A104: QL020104 | C104: 桥台台帽 | D104: m3/处 | F104: 65.6 | H104: =I104/F104 -> 1458.277439 | I104: 95663
B105: 403-2-b | C105: 带肋钢筋(HRB335、HRB400) | D105: kg | E105: 11594 | H105: 6.22 | I105: 72115
B106: 410-2-b | C106: C30混凝土 | D106: m3 | E106: 65.6 | H106: 358.97 | I106: 23548
A107: QL020105 | C107: 桥台支座垫石、挡块 | D107: m3/座 | F107: 2.8 | H107: =I107/F107 -> 5183.928571 | I107: 14515
B108: 403-4-b | C108: 带肋钢筋(HRB335、HRB400) | D108: kg | E108: 2037.4 | H108: 6.4 | I108: 13039
B109: 410-6-c | C109: C30混凝土 | D109: m3 | E109: 2.2 | H109: 526.78 | I109: 1159
B110: 410-6-h | C110: C50小石子混凝土 | D110: m3 | E110: 0.6 | H110: 527.65 | I110: 317
A111: QL0202 | C111: 桥墩基础 | D111: m2/m | F111: =F112 -> 364 | H111: =I111/F111 -> 8892.293956 | I111: 3236795
A112: QL020201 | C112: 桥墩桩基础 | D112: m/根 | F112: 364 | H112: =I112/F112 -> 5293.442308 | I112: 1926813
B113: 403-1-a | C113: 光圆钢筋(HPB235、HPB300) | D113: kg | E113: 2703.4 | H113: 6.01 | I113: 16247
B114: 403-1-b | C114: 带肋钢筋(HRB335、HRB400) | D114: kg | E114: 64867.6 | H114: 6.01 | I114: 389854
B115: 405-1-c | C115: 桩径160m | D115: m | E115: 364 | H115: 4177.78 | I115: 1520712
A116: QL020202 | C116: 桥墩承台 | D116: m3/处 | F116: 240.1 | H116: =I116/F116 -> 1259.300292 | I116: 302358
B117: 403-1-b | C117: 带肋钢筋(HRB335、HRB400) | D117: kg | E117: 29579.9 | H117: 6.01 | I117: 177775
B118: 410-1-c | C118: C30混凝土 | D118: m3 | E118: 240.1 | H118: 518.88 | I118: 124583
A119: QL020203 | C119: 桥墩墩柱 | D119: m3 | F119: 281.4 | H119: =I119/F119 -> 1731.954513 | I119: 487372
B120: 403-2-b | C120: 带肋钢筋(HRB335、HRB400) | D120: kg | E120: 54864.2 | H120: 6.22 | I120: 341255
B121: 410-2-c | C121: C35混凝土 | D121: m3 | E121: 281.4 | H121: 519.25 | I121: 146117
A122: QL020204 | C122: 桥墩盖梁 | D122: m3 | F122: 336 | H122: =I122/F122 -> 1342.080357 | I122: 450939
B123: 403-2-b | C123: 带肋钢筋(HRB335、HRB400) | D123: kg | E123: 53106.9 | H123: 6.22 | I123: 330325
B124: 410-2-b | C124: C30混凝土 | D124: m3 | E124: 336 | H124: 358.97 | I124: 120614
A125: QL020205 | C125: 桥墩支座垫石、挡块 | D125: m3 | F125: 8.04 | H125: =I125/F125 -> 5668.532338 | I125: 45575
B126: 403-4-b | C126: 带肋钢筋(HRB335、HRB400) | D126: kg | E126: 6459.3 | H126: 6.4 | I126: 41340
B127: 410-6-c | C127: C30混凝土 | D127: m3 | E127: 8.04 | H127: 526.78 | I127: 4235
A128: QL020206 | C128: 桥墩防震锚栓 | D128: kg | F128: 3816.4 | H128: =I128/F128 -> 6.219997904 | I128: 23738
B129: 403-2-b | C129: 带肋钢筋(HRB335、HRB400) | D129: kg | E129: 3816.4 | H129: 6.22 | I129: 23738
A130: QL03 | C130: 上部构造 | D130: m/m2 | F130: 364 | H130: =I130/F130 -> 10963.16209 | I130: 3990591
A131: QL0301 | C131: 钢筋混凝土矩形板 | D131: m3 | F131: =F132+F136+F140+F144+F155+F159+F163+F167 -> 1167.66 | H131: =I131/F131 -> 0
A132: QL030101 | C132: 边跨边梁 | D132: m3 | F132: 145.2 | H132: =I132/F132 -> 2352.672176 | I132: 341608
B133: 403-3-a | C133: 光圆钢筋(HPB235、HPB300) | D133: kg | E133: 5880 | H133: 6.29 | I133: 36985
B134: 403-3-b | C134: 带肋钢筋(HRB335、HRB400) | D134: kg | E134: 22464 | H134: 6.29 | I134: 141299
B135: 411-7-a | C135: C50混凝土 | D135: m3 | E135: 145.2 | H135: 1124.82 | I135: 163324
A136: QL030102 | C136: 边跨中梁 | D136: m3 | F136: 136 | H136: =I136/F136 -> 2265.352941 | I136: 308088
B137: 403-3-a | C137: 光圆钢筋(HPB235、HPB300) | D137: kg | E137: 5520 | H137: 6.29 | I137: 34721
B138: 403-3-b | C138: 带肋钢筋(HRB335、HRB400) | D138: kg | E138: 19140 | H138: 6.29 | I138: 120391
B139: 411-7-a | C139: C50混凝土 | D139: m3 | E139: 136 | H139: 1124.82 | I139: 152976
A140: QL030103 | C140: 中跨边梁 | D140: m3 | F140: 422.4 | H140: =I140/F140 -> 2441.96733 | I140: 1031487
B141: 403-3-a | C141: 光圆钢筋(HPB235、HPB300) | D141: kg | E141: 17832 | H141: 6.29 | I141: 112163
B142: 403-3-b | C142: 带肋钢筋(HRB335、HRB400) | D142: kg | E142: 70620 | H142: 6.29 | I142: 444200
B143: 411-7-a | C143: C50混凝土 | D143: m3 | E143: 422.4 | H143: 1124.82 | I143: 475124
A144: QL030104 | C144: 中跨中梁 | D144: m3 | F144: 387.6 | H144: =I144/F144 -> 2373.083075 | I144: 919807
B145: 403-3-a | C145: 光圆钢筋(HPB235、HPB300) | D145: kg | E145: 16764 | H145: 6.29 | I145: 105446
B146: 403-3-b | C146: 带肋钢筋(HRB335、HRB400) | D146: kg | E146: 60156 | H146: 6.29 | I146: 378381
B147: 411-7-a | C147: C50混凝土 | D147: m3 | E147: 387.6 | H147: 1124.82 | I147: 435980
A148: QL030105 | C148: 梁端封锚 | D148: kg | F148: =E149+E150 -> 4614.12 | H148: =I148/F148 -> 6.290040138 | I148: 29023
B149: 403-3-a | C149: 光圆钢筋(HPB235、HPB300) | D149: kg | E149: 47.64 | H149: 6.29 | I149: 300
B150: 403-3-b | C150: 带肋钢筋(HRB335、HRB400) | D150: kg | E150: 4566.48 | H150: 6.29 | I150: 28723
A151: QL030106 | C151: 现浇湿接缝 | D151: kg | F151: =E152+E153 -> 32638.08 | H151: =I151/F151 -> 10.67372836 | I151: 348370
B152: 403-3-a | C152: 光圆钢筋(HPB235、HPB300) | D152: kg | E152: 8129.6 | H152: 6.29 | I152: 51135
B153: 403-3-b | C153: 带肋钢筋(HRB335、HRB400) | D153: kg | E153: 24508.48 | H153: 6.29 | I153: 154158
B154: 411-7-a | C154: C50混凝土 | D154: m3 | E154: 127.2 | H154: 1124.82 | I154: 143077
A155: QL030107 | C155: 端横梁 | D155: m3 | F155: 1.2 | H155: =I155/F155 -> 7074.166667 | I155: 8489
B156: 403-3-a | C156: 光圆钢筋(HPB235、HPB300) | D156: kg | E156: 513.68 | H156: 6.29 | I156: 3231
B157: 403-3-b | C157: 带肋钢筋(HRB335、HRB400) | D157: kg | E157: 621.34 | H157: 6.29 | I157: 3908
B158: 411-7-a | C158: C50混凝土 | D158: m3 | E158: 1.2 | H158: 1124.82 | I158: 1350
A159: QL030108 | C159: 中横梁 | D159: m3 | F159: 62.3 | H159: =I159/F159 -> 1781.348315 | I159: 110978
B160: 403-3-a | C160: 光圆钢筋(HPB235、HPB300) | D160: kg | E160: 1588.58 | H160: 6.29 | I160: 9992
B161: 403-3-b | C161: 带肋钢筋(HRB335、HRB400) | D161: kg | E161: 4914.07 | H161: 6.29 | I161: 30910
B162: 411-7-a | C162: C50混凝土 | D162: m3 | E162: 62.3 | H162: 1124.82 | I162: 70076
A163: QL030109 | C163: 跨中横隔板 | D163: m3 | F163: 5.04 | H163: =I163/F163 -> 14701.78571 | I163: 74097
B164: 403-3-a | C164: 光圆钢筋(HPB235、HPB300) | D164: kg | E164: 2164.32 | H164: 6.29 | I164: 13614
B165: 403-3-b | C165: 带肋钢筋(HRB335、HRB400) | D165: kg | E165: 8714.4 | H165: 6.29 | I165: 54814
B166: 411-7-a | C166: C50混凝土 | D166: m3 | E166: 5.04 | H166: 1124.82 | I166: 5669
A167: QL030110 | C167: 预制堵头板 | D167: m3 | F167: 7.92 | H167: =I167/F167 -> 1819.318182 | I167: 14409
B168: 403-3-a | C168: 光圆钢筋(HPB235、HPB300) | D168: kg | E168: 874.4 | H168: 6.29 | I168: 5500
B169: 411-7-a | C169: C50混凝土 | D169: m3 | E169: 7.92 | H169: 1124.82 | I169: 8909
A170: QL0302 | C170: 负弯矩区钢束槽口封口 | D170: m3 | F170: 35.2 | H170: =I170/F170 -> 3216.25 | I170: 113212
B171: 403-3-b | C171: 带肋钢筋(HRB335、HRB400) | D171: kg | E171: 11704 | H171: 6.29 | I171: 73618
B172: 411-7-a | C172: C50混凝土 | D172: m3 | E172: 35.2 | H172: 1124.82 | I172: 39594
A173: QL0303 | C173: 预应力钢束 | D173: kg | F173: 45492 | H173: =I173/F173 -> 15.18998945 | I173: 691023
B174: 411-5 | C174: 后张法预应力钢绞线 | D174: kg | E174: 45492 | H174: 15.19 | I174: 691023
A175: QL04 | C175: 其他工程 | D175: m/m2 | F175: 960 | H175: =I175/F175 -> 117.8125 | I175: 113100
B176: 403-4-a | C176: 光圆钢筋(HPB235、HPB300) | D176: kg | E176: 122.74 | H176: 6.5 | I176: 798
B177: 403-4-b | C177: 带肋钢筋(HRB335、HRB400) | D177: kg | E177: 6271.7 | H177: 6.4 | I177: 40139
B178: 410-6-c | C178: C30混凝土 | D178: m3 | E178: 61.6 | H178: 526.78 | I178: 32450
B179: 413-1-a | C179: M7.5浆砌片石 | D179: m3 | E179: 46.67 | H179: 302.4 | I179: 14113
B180: 417-5-a | C180: (20cm×20cm×3cm) | D180: 块 | E180: 64 | H180: 400 | I180: 25600
A181: 105 | C181: 隧道工程 | D181: km/座
A182: 106 | C182: 交叉工程 | D182: 处
A183: 107 | C183: 交通工程及沿线设施 | D183: 公路公里
A184: 108 | C184: 绿化及环境保护工程 | D184: 公路公里
A185: 109 | C185: 其他工程 | D185: 公路公里
A186: 110 | C186: 专项费用 | D186: 元
A187: 11001 | C187: 施工场地建设费 | D187: 元
A188: 11002 | C188: 安全生产费 | D188: 元
A189: 2 | C189: 第二部分 土地使用及拆迁补偿费 | D189: 公路公里
A190: 201 | C190: 土地使用费 | D190: 亩
A191: 20101 | C191: 永久征用土地 | D191: 亩
A192: 20102 | C192: 临时用地 | D192: 亩
A193: 202 | C193: 拆迁补偿费 | D193: 公路公里
A194: 203 | C194: 其他补偿费 | D194: 公路公里
A195: 3 | C195: 第三部分 工程建设其他费 | D195: 公路公里
A196: 301 | C196: 建设项目管理费 | D196: 公路公里
A197: 30101 | C197: 建设单位（业主）管理费 | D197: 公路公里
A198: 30102 | C198: 建设项目信息化费 | D198: 公路公里
A199: 30103 | C199: 工程监理费 | D199: 公路公里
A200: 30104 | C200: 设计文件审查费 | D200: 公路公里
... 22 more rows

Sheet 08编办控制价示例
A1: 项目节编号 | B1: 清单子目号 | C1: 名称 | D1: 单位 | E1: 清单数量 | F1: 设计数量1 | G1: 设计数量2 | H1: 单价 | I1: 合价 | J1: 图号 | K1: 备注
A2: 1 | C2: 第一部分 建筑安装工程费 | D2: 公路公里 | F2: 5 | H2: =I2/F2 -> 6424056.6 | I2: 32120283
A3: 1-1 | C3: 临时工程 | D3: 公路公里 | F3: 5 | H3: =I3/F3 -> 1031513 | I3: 5157565
B4: 101-1-a | C4: 按合同条款规定,提供建筑工程一切险 | D4: 总额 | E4: 1 | H4: 1569830 | I4: 1569830
B5: 101-1-b | C5: 按合同条款规定,提供第三方责任险 | D5: 总额 | E5: 1 | H5: 60000 | I5: 60000
B6: 102-1 | C6: 竣工文件 | D6: 总额 | E6: 1 | H6: 200000 | I6: 200000
B7: 102-3 | C7: 安全生产费 | D7: 总额 | E7: 1 | H7: 500000 | I7: 500000
B8: 102-4 | C8: 纵横工程管理软件(暂估价) | D8: 总额 | E8: 1 | H8: 100000 | I8: 100000
B9: 103-1-a | C9: 临时道路 | D9: 总额 | E9: 1 | H9: 1628162 | I9: 1628162
B10: 103-2 | C10: 临时用地 | D10: 总额 | E10: 1 | H10: 57350 | I10: 57350
B11: 103-3-a | C11: 设施架设、拆除 | D11: 总额 | E11: 1 | H11: 941452 | I11: 941452
B12: 103-3-b | C12: 设施维护 | D12: 总额 | E12: 1 | H12: 50000 | I12: 50000
B13: 103-4 | C13: 电信设施的提供、维修与拆除 | D13: 总额 | E13: 1 | H13: 50771 | I13: 50771
A14: 1-2 | C14: 路基工程 | D14: km | F14: 3.62 | H14: =I14/F14 -> 4624397.238 | I14: 16740318
A15: 1-2-2 | C15: 挖方 | D15: m3 | F15: 524213.67 | H15: 7.530000124 | I15: 3947329
A16: 1-2-2-1 | C16: 挖土方 | D16: m3 | F16: 524213.67 | H16: 7.530000124 | I16: 3947329
A17: 1-2-2-1-1 | C17: 挖路基土方 | D17: m3 | F17: 524213.67 | H17: 7.530000124 | I17: 3947329
B18: 203-1-a | C18: 挖土方 | D18: m3 | E18: 524213.67 | H18: 7.53 | I18: 3947329
A19: 1-2-3 | C19: 填方 | D19: m3 | F19: =F20 -> 292966.67 | H19: 15.31229474 | I19: 4485992
A20: 1-2-3-1 | C20: 路基填方 | D20: m3 | F20: =F21+F23 -> 292966.67 | H20: 15.31229474 | I20: 4485992
A21: 1-2-3-1-2 | C21: 利用方填筑 | D21: m3 | F21: 46900.67 | H21: 6.72001061 | I21: 315173
B22: 204-1-b | C22: 利用土方 | D22: m3 | E22: 46900.67 | H22: 6.72 | I22: 315173
A23: 1-2-3-1-3 | C23: 借方填筑 | D23: m3 | F23: 246066 | H23: =I23/F23 -> 16.95000122 | I23: 4170819
B24: 204-1-e | C24: 借土填方 | D24: m3 | E24: 246066 | H24: 16.95 | I24: 4170819
A25: 1-2-4 | C25: 特殊路基处理 | D25: km | F25: 3.62 | H25: =I25/F25 -> 1149792.265 | I25: 4162248
A26: 1-2-4-1 | C26: 软土地区路基处理 | D26: km/m2 | F26: 3.62 | H26: =I26/F26 -> 1149792.265 | I26: 4162248
A27: 1-2-4-1-1 | C27: 清除换填处理 | D27: m3/m2 | F27: =E28+E29+E31 -> 89737.8 | H27: =I27/F27 -> 46.38232718 | I27: 4162248
B28: 203-1-d | C28: 挖淤泥 | D28: m3 | E28: 51899.4 | H28: 17.03 | I28: 883847
B29: 204-1-j | C29: 回填片石 | D29: m3 | E29: 27238.4 | H29: 107.78 | I29: 2935755
B30: 205-1-o | C30: 单向格栅 | D30: m2 | E30: 16350 | H30: 14.96 | I30: 244596
B31: 204-1-g | C31: 回填粗粒土 | D31: m3 | E31: 10600 | H31: 9.25 | I31: 98050
A32: 1-2-5 | C32: 排水工程 | D32: km | F32: 3.62 | H32: =I32/F32 -> 605379.2818 | I32: 2191473
A33: 1-2-5-1 | C33: 边沟 | D33: m3/m | F33: 1620 | H33: =I33/F33 -> 109.6 | I33: 177552
A34: 1-2-5-1-3 | C34: 浆砌片石边沟 | D34: m3/m | F34: 1620 | H34: =I34/F34 -> 109.6 | I34: 177552
B35: 207-1-b | C35: M7.5浆砌片石边沟 | D35: m3 | E35: 1620 | H35: 109.6 | I35: 177552
A36: 1-2-5-2 | C36: 排水沟 | D36: m3/m | F36: =F37 -> 36940 | H36: =I36/F36 -> 26.2040065 | I36: 967976
A37: 1-2-5-2-3 | C37: 浆砌片石排水沟 | D37: m3/m | F37: =E38*5 -> 36940 | H37: =I37/F37 -> 26.2040065 | I37: 967976
B38: 207-2-a | C38: M7.5浆砌片石排水沟 | D38: m | E38: 7388 | H38: 131.02 | I38: 967976
A39: 1-2-5-3 | C39: 截水沟 | D39: m3/m | F39: 8450 | H39: =I39/F39 -> 69.4460355 | I39: 586819
A40: 1-2-5-3-1 | C40: 浆砌片石截水沟 | D40: m3/m | F40: =E41*5 -> 8450 | H40: =I40/F40 -> 69.4460355 | I40: 586819
B41: 207-3-a | C41: M7.5浆砌片石截水沟 | D41: m | E41: 1690 | H41: 347.23 | I41: 586819
A42: 1-2-5-4 | C42: 急流槽 | D42: m3/m | F42: 7795 | H42: =I42/F42 -> 58.90006414 | I42: 459126
A43: 1-2-5-4-2 | C43: 浆砌片石急流槽 | D43: m3/m | F43: =E44*5 -> 7795 | H43: =I43/F43 -> 58.90006414 | I43: 459126
B44: 207-4-a | C44: M7.5浆砌片石急流槽 | D44: m3 | E44: 1559 | H44: 294.5 | I44: 459126
A45: 1-2-6 | C45: 路基防护与加固工程 | D45: km | F45: 3.62 | H45: =I45/F45 -> 539579.0055 | I45: 1953276
A46: 1-2-6-1 | C46: 填方边坡防护与加固 | D46: km/m2 | F46: 3.62 | H46: =I46/F46 -> 170391.989 | I46: 616819
A47: 1-2-6-1-1 | C47: 坡面植物防护 | D47: m2 | F47: 86062.5 | H47: =I47/F47 -> 3.32000581 | I47: 285728
B48: 208-1-a | C48: 植草 | D48: m2 | E48: 86062.5 | H48: 3.32 | I48: 285728
A49: 1-2-6-1-2 | C49: 坡面圬工防护 | D49: m3/m2 | F49: 2616.7 | H49: =I49/F49 -> 126.5299805 | I49: 331091
B50: 208-3-a | C50: 拱形浆砌片石护坡 | D50: m3 | E50: 2616.7 | H50: 126.53 | I50: 331091
A51: 1-2-6-3 | C51: 高边坡防护与加固 | D51: km/m2 | F51: 3.62 | H51: =I51/F51 -> 111641.1602 | I51: 404141
B52: 208-3-a | C52: 拱形浆砌片石护坡 | D52: m3 | E52: 3194.03 | H52: 126.53 | I52: 404141
A53: 1-2-6-4 | C53: 挡土墙 | D53: m3/m | F53: 3472.7 | H53: =I53/F53 -> 268.4700665 | I53: 932316
A54: 1-2-6-4-1 | C54: 重力式挡墙 | D54: m3/m | F54: 3472.7 | H54: =I54/F54 -> 268.4700665 | I54: 932316
A55: 1-2-6-4-1-2 | C55: 浆砌片（块）石挡土墙 | D55: m3/m | F55: 3472.7 | H55: =I55/F55 -> 268.4700665 | I55: 932316
B56: 209-1-a | C56: 浆砌片（块）石挡墙 | D56: m3 | E56: 3472.7 | H56: 268.47 | I56: 932316
A57: 1-3 | C57: 路面工程 | D57: km/m2 | F57: 3.62 | H57: =I57/F57 -> 2198.618785 | I57: 7959
A58: 1-3-2 | C58: 路面底基层 | D58: m2/m3 | F58: 71.2 | H58: =I58/F58 -> 111.7837079 | I58: 7959
B59: 304-2 | C59: 搭板、埋板下水泥稳定土底基层（4%） | D59: m2 | E59: 71.2 | H59: 111.78 | I59: 7959
A60: 1-4 | C60: 桥梁涵洞工程 | D60: km | F60: 1.38 | H60: =I60/F60 -> 7401768.841 | I60: 10214441
A61: 1-4-2 | C61: 涵洞工程 | D61: m/道 | F61: =F62+F65 -> 420.3 | H61: =I61/F61 -> 2190.080895 | I61: 920491
A62: 1-4-2-1 | C62: 钢筋混凝土管涵 | D62: m/道 | F62: 227.37 | H62: =I62/F62 -> 889.7611822 | I62: 202305
A63: 1-4-2-1-2 | C63: 1-Ф1.5m以内圆管涵 | D63: m/道 | F63: 227.37 | H63: =I63/F63 -> 889.7611822 | I63: 202305
B64: 418-3-c | C64: 1-Ф1.5m以内圆管涵 | D64: m | E64: 227.37 | H64: 889.76 | I64: 202305
A65: 1-4-2-2 | C65: 盖板涵 | D65: m/道 | F65: =F66+F68 -> 192.93 | H65: =I65/F65 -> 3722.521122 | I65: 718186
A66: 1-4-2-2-1 | C66: 1-2m以内盖板涵 | D66: m/道 | F66: 111.07 | H66: =I66/F66 -> 2605.257945 | I66: 289366
B67: 420-1-b | C67: 1-2.00m×2.00m盖板涵 | D67: m | E67: 111.07 | H67: 2605.26 | I67: 289366
A68: 1-4-2-2-3 | C68: 1-4m以内盖板涵 | D68: m/道 | F68: 81.86 | H68: =I68/F68 -> 5238.4559 | I68: 428820
B69: 420-1-c | C69: 1-4.00m×3.00m盖板涵 | D69: m | E69: 81.86 | H69: 5238.45 | I69: 428820
A70: 1-4-3 | C70: 小桥（8≤L≤30m,5≤Lk＜20m） | D70: m/座 | F70: 180 | H70: =I70/F70 -> 4031.383333 | I70: 725649
A71: 1-4-3-5 | C71: 预应力混凝土空心板桥 | D71: m/m2 | F71: 180 | H71: =I71/F71 -> 4031.383333 | I71: 725649
A72: 1-4-3-5-1 | C72: K0+078小桥 | D72: m/座 | F72: 180 | H72: =I72/F72 -> 4031.383333 | I72: 725649
A73: 1-4-3-5-1-1 | C73: 基础 | D73: m | F73: 180 | H73: =I73/F73 -> 2765.95 | I73: 497871
B74: 403-1-a | C74: 光圆钢筋(HPB235、HPB300) | D74: kg | E74: 2019 | H74: 6.01 | I74: 12134
B75: 403-1-b | C75: 带肋钢筋(HRB335、HRB400) | D75: kg | E75: 5311 | H75: 6.01 | I75: 31919
B76: 405-1-a | C76: 桩径130cm | D76: m | E76: 180 | H76: 2231.26 | I76: 401627
B77: 410-1-b | C77: C25混凝土 | D77: m3 | E77: 14.6 | H77: 464.99 | I77: 6789
B78: 410-1-c | C78: C30混凝土 | D78: m3 | E78: 87.5 | H78: 518.88 | I78: 45402
A79: 1-4-3-5-1-2 | C79: 下部结构 | D79: m/m2 | F79: 180 | H79: =I79/F79 -> 1108.988889 | I79: 199618
B80: 403-2-a | C80: 光圆钢筋(HPB235、HPB300) | D80: kg | E80: 1891 | H80: 6.28 | I80: 11875
B81: 403-2-b | C81: 带肋钢筋(HRB335、HRB400) | D81: kg | E81: 16397 | H81: 6.22 | I81: 101989
B82: 410-2-a | C82: C25混凝土 | D82: m3 | E82: 29.1 | H82: 450.11 | I82: 13098
B83: 410-2-b | C83: C30混凝土 | D83: m3 | E83: 202.4 | H83: 358.97 | I83: 72656
A84: 1-4-3-5-1-3 | C84: 上部结构 | D84: m/m2 | F84: 180 | H84: =I84/F84 -> 153.0833333 | I84: 27555
B85: 403-3-a | C85: 光圆钢筋(HPB235、HPB300) | D85: kg | E85: 1627 | H85: 6.29 | I85: 10234
B86: 410-7-c | C86: C50混凝土 | D86: m3 | E86: 17.3 | H86: 1001.23 | I86: 17321
A87: 1-4-3-5-1-4 | C87: 桥台 | D87: m3/处 | F87: 2 | H87: =I87/F87 -> 302.5 | I87: 605
B88: 413-1-a | C88: M7.5浆砌片石 | D88: m3 | E88: 2 | H88: 302.4 | I88: 605
A89: 1-4-5 | C89: 特、大桥工程（100≤L,40≤Lk） | D89: m/座 | F89: 1120 | H89: =I89/F89 -> 7650.26875 | I89: 8568301
A90: 1-4-5-1 | C90: ×××（特）大桥（××结构类型） | D90: m/m2 | F90: 1120 | H90: =I90/F90 -> 7650.26875 | I90: 8568301
A91: 1-4-5-1-1 | C91: 桥台（台高××m） | D91: m/m2 | F91: 1120 | H91: =I91/F91 -> 1096.263393 | I91: 1227815
A92: 1-4-5-1-1-1 | C92: 桥台基础 | D92: m3/处 | F92: =F93+F97 -> 1471 | H92: =I92/F92 -> 622.5234534 | I92: 915732
A93: 1-4-5-1-1-1-1 | C93: 桥台桩基础 | D93: m3/处 | F93: 1299 | H93: =I93/F93 -> 562.5619707 | I93: 730768
B94: 403-1-a | C94: 光圆钢筋(HPB235、HPB300) | D94: kg | E94: 1112.4 | H94: 6.01 | I94: 6686
B95: 403-1-b | C95: 带肋钢筋(HRB335、HRB400) | D95: kg | E95: 29132 | H95: 6.01 | I95: 175083
B96: 405-1-b | C96: 桩径150cm | D96: m | E96: 184 | H96: 2983.69 | I96: 548999
A97: 1-4-5-1-1-1-2 | C97: 桥台承台 | D97: m3/处 | F97: 172 | H97: =I97/F97 -> 1075.372093 | I97: 184964
B98: 403-1-b | C98: 带肋钢筋(HRB335、HRB400) | D98: kg | E98: 17468.6 | H98: 6.01 | I98: 104986
B99: 410-1-b | C99: C25混凝土 | D99: m3 | E99: 172 | H99: 464.99 | I99: 79978
A100: 1-4-5-1-1-2 | C100: 桥台台身 | D100: m3/处 | F100: 104.7 | H100: =I100/F100 -> 1480.238777 | I100: 154981
B101: 403-2-a | C101: 光圆钢筋(HPB235、HPB300) | D101: kg | E101: 2090.8 | H101: 6.28 | I101: 13130
B102: 403-2-b | C102: 带肋钢筋(HRB335、HRB400) | D102: kg | E102: 14065.26 | H102: 6.22 | I102: 87486
B103: 410-2-c | C103: C35混凝土 | D103: m3 | E103: 104.7 | H103: 519.25 | I103: 54365
A104: 1-4-5-1-1-3 | C104: 桥台耳背墙 | D104: m3/处 | F104: 46.2 | H104: =I104/F104 -> 1015.670996 | I104: 46924
B105: 403-2-b | C105: 带肋钢筋(HRB335、HRB400) | D105: kg | E105: 4877.84 | H105: 6.22 | I105: 30340
B106: 410-2-b | C106: C30混凝土 | D106: m3 | E106: 46.2 | H106: 358.97 | I106: 16584
A107: 1-4-5-1-1-4 | C107: 桥台台帽 | D107: m3/处 | F107: 65.6 | H107: =I107/F107 -> 1458.277439 | I107: 95663
B108: 403-2-b | C108: 带肋钢筋(HRB335、HRB400) | D108: kg | E108: 11594 | H108: 6.22 | I108: 72115
B109: 410-2-b | C109: C30混凝土 | D109: m3 | E109: 65.6 | H109: 358.97 | I109: 23548
A110: 1-4-5-1-1-5 | C110: 桥台支座垫石、挡块 | D110: m3/座 | F110: 2.8 | H110: =I110/F110 -> 5183.928571 | I110: 14515
B111: 403-4-b | C111: 带肋钢筋(HRB335、HRB400) | D111: kg | E111: 2037.4 | H111: 6.4 | I111: 13039
B112: 410-6-c | C112: C30混凝土 | D112: m3 | E112: 2.2 | H112: 526.78 | I112: 1159
B113: 410-6-h | C113: C50小石子混凝土 | D113: m3 | E113: 0.6 | H113: 527.65 | I113: 317
A114: 1-4-5-1-2 | C114: 桥墩基础 | D114: m/m2 | F114: =F115 -> 364 | H114: =I114/F114 -> 6124.096154 | I114: 2229171
A115: 1-4-5-1-2-1 | C115: 桥墩桩基础 | D115: m/根 | F115: 364 | H115: =I115/F115 -> 5293.442308 | I115: 1926813
B116: 403-1-a | C116: 光圆钢筋(HPB235、HPB300) | D116: kg | E116: 2703.4 | H116: 6.01 | I116: 16247
B117: 403-1-b | C117: 带肋钢筋(HRB335、HRB400) | D117: kg | E117: 64867.6 | H117: 6.01 | I117: 389854
B118: 405-1-c | C118: 桩径160m | D118: m | E118: 364 | H118: 4177.78 | I118: 1520712
A119: 1-4-5-1-2-2 | C119: 桥墩承台 | D119: m3/处 | F119: 240.1 | H119: =I119/F119 -> 1259.300292 | I119: 302358
B120: 403-1-b | C120: 带肋钢筋(HRB335、HRB400) | D120: kg | E120: 29579.9 | H120: 6.01 | I120: 177775
B121: 410-1-c | C121: C30混凝土 | D121: m3 | E121: 240.1 | H121: 518.88 | I121: 124583
A122: 1-4-5-1-3 | C122: 下部构造（墩高××m） | D122: m/m2 | F122: 364 | H122: =I122/F122 -> 2768.197802 | I122: 1007624
A123: 1-4-5-1-3-1 | C123: 桥墩墩柱 | D123: m3 | F123: 281.4 | H123: =I123/F123 -> 1731.954513 | I123: 487372
B124: 403-2-b | C124: 带肋钢筋(HRB335、HRB400) | D124: kg | E124: 54864.2 | H124: 6.22 | I124: 341255
B125: 410-2-c | C125: C35混凝土 | D125: m3 | E125: 281.4 | H125: 519.25 | I125: 146117
A126: 1-4-5-1-3-2 | C126: 桥墩盖梁 | D126: m3 | F126: 336 | H126: =I126/F126 -> 1342.080357 | I126: 450939
B127: 403-2-b | C127: 带肋钢筋(HRB335、HRB400) | D127: kg | E127: 53106.9 | H127: 6.22 | I127: 330325
B128: 410-2-b | C128: C30混凝土 | D128: m3 | E128: 336 | H128: 358.97 | I128: 120614
A129: 1-4-5-1-3-3 | C129: 桥墩支座垫石、挡块 | D129: m3 | F129: 8.04 | H129: =I129/F129 -> 5668.532338 | I129: 45575
B130: 403-4-b | C130: 带肋钢筋(HRB335、HRB400) | D130: kg | E130: 6459.3 | H130: 6.4 | I130: 41340
B131: 410-6-c | C131: C30混凝土 | D131: m3 | E131: 8.04 | H131: 526.78 | I131: 4235
A132: 1-4-5-1-3-4 | C132: 桥墩防震锚栓 | D132: kg | F132: 3816.4 | H132: =I132/F132 -> 6.219997904 | I132: 23738
B133: 403-2-b | C133: 带肋钢筋(HRB335、HRB400) | D133: kg | E133: 3816.4 | H133: 6.22 | I133: 23738
A134: 1-4-5-1-4 | C134: 上部构造 | D134: m/m2 | F134: 364 | H134: =I134/F134 -> 10963.16209 | I134: 3990591
A135: 1-4-5-1-4-1 | C135: 梁端封锚 | D135: kg | F135: =E136+E137 -> 4614.12 | H135: =I135/F135 -> 6.290040138 | I135: 29023
B136: 403-3-a | C136: 光圆钢筋(HPB235、HPB300) | D136: kg | E136: 47.64 | H136: 6.29 | I136: 300
B137: 403-3-b | C137: 带肋钢筋(HRB335、HRB400) | D137: kg | E137: 4566.48 | H137: 6.29 | I137: 28723
A138: 1-4-5-1-4-2 | C138: 现浇湿接缝 | D138: kg | F138: =E139+E140 -> 32638.08 | H138: =I138/F138 -> 10.67372836 | I138: 348370
B139: 403-3-a | C139: 光圆钢筋(HPB235、HPB300) | D139: kg | E139: 8129.6 | H139: 6.29 | I139: 51135
B140: 403-3-b | C140: 带肋钢筋(HRB335、HRB400) | D140: kg | E140: 24508.48 | H140: 6.29 | I140: 154158
B141: 411-7-a | C141: C50混凝土 | D141: m3 | E141: 127.2 | H141: 1124.82 | I141: 143077
A142: 1-4-5-1-4-3 | C142: 端横梁 | D142: m3 | F142: 1.2 | H142: =I142/F142 -> 7074.166667 | I142: 8489
B143: 403-3-a | C143: 光圆钢筋(HPB235、HPB300) | D143: kg | E143: 513.68 | H143: 6.29 | I143: 3231
B144: 403-3-b | C144: 带肋钢筋(HRB335、HRB400) | D144: kg | E144: 621.34 | H144: 6.29 | I144: 3908
B145: 411-7-a | C145: C50混凝土 | D145: m3 | E145: 1.2 | H145: 1124.82 | I145: 1350
A146: 1-4-5-1-4-4 | C146: 中横梁 | D146: m3 | F146: 62.3 | H146: =I146/F146 -> 1781.348315 | I146: 110978
B147: 403-3-a | C147: 光圆钢筋(HPB235、HPB300) | D147: kg | E147: 1588.58 | H147: 6.29 | I147: 9992
B148: 403-3-b | C148: 带肋钢筋(HRB335、HRB400) | D148: kg | E148: 4914.07 | H148: 6.29 | I148: 30910
B149: 411-7-a | C149: C50混凝土 | D149: m3 | E149: 62.3 | H149: 1124.82 | I149: 70076
A150: 1-4-5-1-4-5 | C150: 跨中横隔板 | D150: m3 | F150: 5.04 | H150: =I150/F150 -> 14701.78571 | I150: 74097
B151: 403-3-a | C151: 光圆钢筋(HPB235、HPB300) | D151: kg | E151: 2164.32 | H151: 6.29 | I151: 13614
B152: 403-3-b | C152: 带肋钢筋(HRB335、HRB400) | D152: kg | E152: 8714.4 | H152: 6.29 | I152: 54814
B153: 411-7-a | C153: C50混凝土 | D153: m3 | E153: 5.04 | H153: 1124.82 | I153: 5669
A154: 1-4-5-1-4-6 | C154: 预制堵头板 | D154: m3 | F154: 7.92 | H154: =I154/F154 -> 1819.318182 | I154: 14409
B155: 403-3-a | C155: 光圆钢筋(HPB235、HPB300) | D155: kg | E155: 874.4 | H155: 6.29 | I155: 5500
B156: 411-7-a | C156: C50混凝土 | D156: m3 | E156: 7.92 | H156: 1124.82 | I156: 8909
A157: 1-4-5-1-4-7 | C157: 箱梁预制 | D157: m3 | F157: =F158+F162+F166+F170 -> 1091.2 | H157: =I157/F157 -> 2383.605205 | I157: 2600990
A158: 1-4-5-1-4-7-1 | C158: 边跨边梁 | D158: m3 | F158: 145.2 | H158: =I158/F158 -> 2352.672176 | I158: 341608
B159: 403-3-a | C159: 光圆钢筋(HPB235、HPB300) | D159: kg | E159: 5880 | H159: 6.29 | I159: 36985
B160: 403-3-b | C160: 带肋钢筋(HRB335、HRB400) | D160: kg | E160: 22464 | H160: 6.29 | I160: 141299
B161: 411-7-a | C161: C50混凝土 | D161: m3 | E161: 145.2 | H161: 1124.82 | I161: 163324
A162: 1-4-5-1-4-7-2 | C162: 边跨中梁 | D162: m3 | F162: 136 | H162: =I162/F162 -> 2265.352941 | I162: 308088
B163: 403-3-a | C163: 光圆钢筋(HPB235、HPB300) | D163: kg | E163: 5520 | H163: 6.29 | I163: 34721
B164: 403-3-b | C164: 带肋钢筋(HRB335、HRB400) | D164: kg | E164: 19140 | H164: 6.29 | I164: 120391
B165: 411-7-a | C165: C50混凝土 | D165: m3 | E165: 136 | H165: 1124.82 | I165: 152976
A166: 1-4-5-1-4-7-3 | C166: 中跨边梁 | D166: m3 | F166: 422.4 | H166: =I166/F166 -> 2441.96733 | I166: 1031487
B167: 403-3-a | C167: 光圆钢筋(HPB235、HPB300) | D167: kg | E167: 17832 | H167: 6.29 | I167: 112163
B168: 403-3-b | C168: 带肋钢筋(HRB335、HRB400) | D168: kg | E168: 70620 | H168: 6.29 | I168: 444200
B169: 411-7-a | C169: C50混凝土 | D169: m3 | E169: 422.4 | H169: 1124.82 | I169: 475124
A170: 1-4-5-1-4-7-4 | C170: 中跨中梁 | D170: m3 | F170: 387.6 | H170: =I170/F170 -> 2373.083075 | I170: 919807
B171: 403-3-a | C171: 光圆钢筋(HPB235、HPB300) | D171: kg | E171: 16764 | H171: 6.29 | I171: 105446
B172: 403-3-b | C172: 带肋钢筋(HRB335、HRB400) | D172: kg | E172: 60156 | H172: 6.29 | I172: 378381
B173: 411-7-a | C173: C50混凝土 | D173: m3 | E173: 387.6 | H173: 1124.82 | I173: 435980
A174: 1-4-5-1-4-8 | C174: 负弯矩区钢束槽口封口 | D174: m3 | F174: 35.2 | H174: =I174/F174 -> 3216.25 | I174: 113212
B175: 403-3-b | C175: 带肋钢筋(HRB335、HRB400) | D175: kg | E175: 11704 | H175: 6.29 | I175: 73618
B176: 411-7-a | C176: C50混凝土 | D176: m3 | E176: 35.2 | H176: 1124.82 | I176: 39594
A177: 1-4-5-1-4-9 | C177: 预应力钢束 | D177: kg | F177: 45492 | H177: =I177/F177 -> 15.18998945 | I177: 691023
B178: 411-5 | C178: 后张法预应力钢绞线 | D178: kg | E178: 45492 | H178: 15.19 | I178: 691023
A179: 1-4-5-1-5 | C179: 其他工程 | D179: m/m2 | F179: 960 | H179: =I179/F179 -> 117.8125 | I179: 113100
B180: 403-4-a | C180: 光圆钢筋(HPB235、HPB300) | D180: kg | E180: 122.74 | H180: 6.5 | I180: 798
B181: 403-4-b | C181: 带肋钢筋(HRB335、HRB400) | D181: kg | E181: 6271.7 | H181: 6.4 | I181: 40139
B182: 410-6-c | C182: C30混凝土 | D182: m3 | E182: 61.6 | H182: 526.78 | I182: 32450
B183: 413-1-a | C183: M7.5浆砌片石 | D183: m3 | E183: 46.67 | H183: 302.4 | I183: 14113
B184: 417-5-a | C184: (20cm×20cm×3cm) | D184: 块 | E184: 64 | H184: 400 | I184: 25600
A185: 1-10 | C185: 建安工程其他费用 | D185: 公路公里
A186: 1-10-1 | C186: 其他建安工程 | D186: 项
A187: 1-10-1-1 | C187: 计日工 | D187: 项
A188: 1-10-1-1-1 | C188: 劳务 | D188: 项
A189: 1-10-1-1-2 | C189: 材料 | D189: 项
A190: 1-10-1-1-3 | C190: 机械 | D190: 项
A191: 1-10-1-2 | C191: 工程管理专项费用 | D191: 项
A192: 1-10-1-3 | C192: 索赔 | D192: 项
A193: 1-10-1-4 | C193: 价差调整 | D193: 项
A194: 1-10-1-5 | C194: 代扣代付项目增减建设成本 | D194: 项
A195: 1-10-2 | C195: 尾工工程 | D195: 项
A196: 1-10-3 | C196: 报废工程 | D196: 项
A197: 2 | C197: 第二部分 设备及工具、器具购置费 | D197: 公路公里
A198: 2-1 | C198: 设备购置费 | D198: 公路公里
A199: 2-2 | C199: 工具、器具购置 | D199: 公路公里
A200: 2-3 | C200: 办公及生活用家具购置 | D200: 公路公里
... 32 more rows
